bitfinex/quotes_ETHUSD_20220731
["timestamp","ask_amount","ask_price","bid_price","bid_amount"]
[1659245462784,0.05,1695.7,1695.1,0.08297625]
[1659245462986,0.30258311,1695.7,1695.1,0.08297625]
[1659245463223,6.30258311,1695.7,1695.1,0.08297625]
[1659245463448,0.10533649,1695.5,1694.9,0.05]
[1659245463613,0.10533649,1695.5,1694.7,0.05]
[1659245463614,6.33093604,1695.4,1694.7,0.05]
[1659245463790,8.72914672,1695.3,1694.6,8.2945]
[1659245463991,0.4429,1695.2,1694.6,8.2445]
[1659245464315,0.30258311,1695.1,1694.6,8.2445]
[1659245464487,0.30258311,1695.1,1694.4,0.05]
[1659245464689,0.30258311,1695.1,1694.4,5.89804672]
[1659245464916,0.30258311,1695.1,1694.4,5.98102297]
[1659245465621,0.30258311,1695.1,1694.5,0.09466351]
[1659245465830,0.30258311,1695.1,1694.6,0.08297625]
[1659245474047,0.30258311,1695.1,1694.6,2.98102297]
[1659245474780,0.30258311,1695.1,1694.6,0.08297625]
[1659245475281,0.30258311,1695.1,1694.6,2.98102297]
[1659245477591,0.30258311,1695.1,1694.6,0.08297625]
[1659245478111,0.4079196,1695.1,1694.6,0.08297625]
[1659245478310,0.4079196,1695.1,1694.4,0.05]
[1659245478311,6.3320951,1695.0,1694.4,0.05]
[1659245478535,6.3320951,1695.0,1694.3,7.8955]
[1659245478536,5.8891951,1695.0,1694.3,7.8955]
[1659245478941,0.10533649,1694.9,1694.3,7.8955]
[1659245479508,0.10533649,1694.9,1694.3,7.97847625]
[1659245479759,0.4079196,1694.9,1694.3,7.97847625]
[1659245480307,0.30258311,1694.9,1694.3,7.97847625]
[1659245481749,0.30258311,1694.9,1694.3,7.97483112]
[1659245483118,2.89804672,1694.8,1694.3,0.08297625]
[1659245483513,6.19794672,1694.8,1694.3,0.08297625]
[1659245483736,3.2999,1694.8,1694.3,0.08297625]
[1659245484052,6.1251,1694.8,1694.3,0.08297625]
[1659245486069,6.1251,1694.8,1694.3,2.98102297]
[1659245488233,6.1251,1694.8,1694.3,2.97716695]
[1659245493202,6.1251,1694.8,1694.3,0.07912023]
[1659245493773,0.05,1695.0,1694.6,0.09466351]
[1659245493987,0.4463425,1695.2,1694.7,0.07912023]
[1659245493988,14.0325425,1695.2,1694.7,0.07912023]
[1659245494196,13.5396425,1695.2,1694.8,0.09466351]
[1659245494602,13.5362,1695.2,1694.8,0.09466351]
[1659245495179,13.5362,1695.2,1694.7,0.07912023]
[1659245496971,13.9791,1695.2,1694.7,0.07912023]
[1659245498821,16.87714672,1695.2,1694.7,0.07912023]
[1659245499186,17.47714672,1695.2,1694.7,0.07912023]
[1659245499587,2.901,1695.1,1694.7,0.07912023]
[1659245508562,2.901,1695.1,1694.7,0.07597275]
[1659245509159,2.901,1695.1,1694.9,0.09466351]
[1659245509474,2.901,1695.1,1694.7,0.07597275]
[1659245510085,2.901,1695.1,1694.8,0.09466351]
[1659245510448,2.901,1695.1,1694.7,0.07597275]
[1659245510958,2.901,1695.1,1694.8,0.09466351]
[1659245512394,2.901,1695.1,1694.7,0.07597275]
[1659245512894,0.48750103,1695.3,1694.8,2.89804672]
[1659245513104,0.48750103,1695.3,1694.9,0.09466351]
[1659245513105,0.04470103,1695.3,1694.9,0.09466351]
[1659245513283,0.04470103,1695.3,1694.9,2.99271023]
[1659245513653,0.04470103,1695.3,1695.0,2.89804672]
[1659245513854,1.05,1695.5,1695.0,2.89804672]
[1659245513855,1.0,1695.5,1695.0,2.89804672]
[1659245514092,1.0,1695.5,1694.9,3.06868298]
[1659245514481,1.6,1695.5,1694.9,3.06868298]
[1659245515220,1.6,1695.5,1694.9,0.17063626]
[1659245515525,2.0428,1695.5,1694.9,0.17063626]
[1659245516110,2.7095,1695.4,1694.9,0.17063626]
[1659245516891,5.8724323,1695.4,1694.9,0.17063626]
[1659245517224,2.97438558,1695.4,1694.9,0.07597275]
[1659245521345,2.7095,1695.4,1694.9,6.47401947]
[1659245522085,2.7095,1695.4,1694.9,0.07597275]
[1659245522735,5.8761,1695.4,1694.9,0.07597275]
[1659245523143,2.94274775,1695.3,1694.7,0.05]
[1659245523444,6.80338321,1695.2,1694.5,0.05]
[1659245523649,3.4429,1695.1,1694.4,8.0621]
[1659245523845,3.7429,1695.1,1694.4,10.91014672]
[1659245524020,0.04470103,1695.0,1694.4,10.91014672]
[1659245524437,0.04470103,1695.0,1694.4,10.98611947]
[1659245526651,5.9407,1695.1,1694.5,3.5]
[1659245526862,5.9407,1695.1,1694.6,6.47401947]
[1659245527002,5.9407,1695.1,1694.7,3.5]
[1659245527203,0.00355845,1695.2,1694.8,2.89804672]
[1659245527712,0.00355845,1695.2,1694.9,3.5]
[1659245527939,0.05,1695.5,1694.9,6.39804672]
[1659245528141,14.3579,1695.6,1694.9,6.39804672]
[1659245528513,14.17998558,1695.6,1694.9,6.69804672]
[1659245528851,14.18354399,1695.6,1694.9,3.64094672]
[1659245529320,14.18354399,1695.6,1694.9,3.19804672]
[1659245529509,14.17998558,1695.6,1694.9,3.19804672]
[1659245530352,14.22083059,1695.6,1694.9,3.19804672]
[1659245530721,14.22083059,1695.6,1694.9,3.27401947]
[1659245531335,14.52083059,1695.6,1694.9,2.97401947]
[1659245531521,14.82083059,1695.6,1694.9,2.97401947]
[1659245531837,14.82083059,1695.6,1694.9,2.97102786]
[1659245533338,14.82083059,1695.6,1694.9,6.47102786]
[1659245533709,14.22083059,1695.6,1695.0,5.89804672]
[1659245533910,5.8313,1695.6,1695.2,3.5]
[1659245534176,5.8313,1695.6,1695.2,6.39804672]
[1659245534539,5.8313,1695.6,1695.2,6.47401947]
[1659245534850,17.51013912,1695.8,1695.3,2.89804672]
[1659245535015,17.5061,1695.8,1695.3,2.89804672]
[1659245535415,17.50995602,1695.8,1695.3,2.89804672]
[1659245536048,11.5,1695.8,1695.4,0.07597275]
[1659245536232,11.5,1695.8,1695.4,9.97401947]
[1659245536445,11.5,1695.8,1695.4,2.97401947]
[1659245536833,8.11025602,1695.9,1695.4,2.97401947]
[1659245537062,8.21559251,1695.9,1695.4,2.97401947]
[1659245537653,8.11025602,1695.9,1695.4,2.97401947]
[1659245538363,8.11025602,1695.9,1695.4,2.9767381]
[1659245539641,8.21559251,1695.9,1695.4,2.9767381]
[1659245540374,8.11025602,1695.9,1695.4,2.9767381]
[1659245557577,8.11025602,1695.9,1695.4,2.97385792]
[1659245557829,0.10533649,1695.8,1695.2,0.05]
[1659245558009,3.68303649,1695.8,1695.2,2.89804672]
[1659245559180,6.52303649,1695.8,1695.2,2.89804672]
[1659245559415,6.52303649,1695.8,1695.2,12.46060983]
[1659245559416,6.73016678,1695.8,1695.2,12.46060983]
[1659245559726,6.28746678,1695.8,1695.3,2.89804672]
[1659245560320,6.28746678,1695.8,1695.2,2.97113929]
[1659245560558,0.4427,1695.7,1695.2,2.97113929]
[1659245561152,6.83550327,1695.8,1695.3,2.89804672]
[1659245561327,6.39280327,1695.8,1695.3,6.21549482]
[1659245561513,6.39280327,1695.8,1695.4,2.89804672]
[1659245561715,6.39280327,1695.8,1695.2,0.07309257]
[1659245561955,6.39280327,1695.8,1695.2,2.97113929]
[1659245569373,6.39280327,1695.8,1695.2,0.07309257]
[1659245569538,0.4427,1695.7,1695.2,0.07309257]
[1659245571440,6.73016678,1695.8,1695.2,0.07309257]
[1659245576466,10.23016678,1695.8,1695.2,0.07309257]
[1659245576645,6.73016678,1695.8,1695.2,0.07309257]
[1659245578043,5.975,1695.8,1695.3,2.89804672]
[1659245578277,5.975,1695.8,1695.4,10.07309257]
[1659245578477,5.975,1695.8,1695.4,12.97113929]
[1659245578641,3.135,1695.8,1695.4,12.97113929]
[1659245579181,3.135,1695.8,1695.4,12.97385792]
[1659245579743,3.1318025,1695.8,1695.4,12.97385792]
[1659245579945,3.1318025,1695.8,1695.4,9.47385792]
[1659245580154,8.1064,1695.9,1695.5,2.89804672]
[1659245586751,0.4926,1696.2,1695.6,0.07309257]
[1659245586952,9.67976066,1696.3,1695.9,3.59466351]
[1659245586953,5.9095,1696.3,1695.9,3.59466351]
[1659245587156,0.05355226,1696.5,1696.1,3.5]
[1659245587368,0.00355226,1696.5,1696.3,3.5]
[1659245587593,0.00355226,1696.5,1696.4,9.16146846]
[1659245587752,12.20533482,1697.1,1696.4,9.16146846]
[1659245587753,0.47016066,1697.2,1696.7,2.82002093]
[1659245587948,0.47016066,1697.3,1696.9,3.5]
[1659245588197,18.11043482,1697.5,1696.9,6.69804672]
[1659245588198,17.87526066,1697.5,1696.9,6.69804672]
[1659245588354,17.87526066,1697.5,1697.0,0.07309257]
[1659245588355,17.4051,1697.5,1697.0,0.07309257]
[1659245588554,17.4051,1697.5,1697.0,2.97113929]
[1659245588955,14.3465,1697.5,1697.0,2.97113929]
[1659245589348,14.3465,1697.5,1697.1,2.89804672]
[1659245590386,14.3465,1697.5,1697.1,2.9326497]
[1659245590554,2.8465,1697.5,1697.2,2.89804672]
[1659245591176,3.4783,1697.6,1696.9,0.05]
[1659245591388,3.4783,1697.6,1696.8,0.05]
[1659245591389,0.4423,1697.5,1696.8,0.05]
[1659245591609,0.4423,1697.5,1696.7,0.05]
[1659245591771,0.4923,1697.5,1696.7,2.89804672]
[1659245591969,0.31246678,1697.4,1696.8,0.07309257]
[1659245592166,0.4423,1697.3,1696.8,0.07309257]
[1659245592582,0.4423,1697.3,1696.8,7.57309257]
[1659245592970,0.75476678,1697.4,1696.8,7.57309257]
[1659245593390,0.75476678,1697.4,1696.8,10.47113929]
[1659245593556,0.31669147,1697.4,1696.8,10.47113929]
[1659245594577,0.31246678,1697.4,1696.8,10.47113929]
[1659245595099,0.31669147,1697.4,1696.9,6.21119786]
[1659245595870,0.31246678,1697.4,1696.9,2.89804672]
[1659245596097,0.31246678,1697.4,1696.8,2.97113929]
[1659245597492,0.31246678,1697.4,1696.8,0.07309257]
[1659245597730,0.31570871,1697.4,1696.8,0.07309257]
[1659245598619,0.31246678,1697.4,1696.8,0.07309257]
[1659245599096,3.21375543,1697.4,1696.8,0.07309257]
[1659245599892,3.2105135,1697.4,1696.8,0.07309257]
[1659245600529,3.21375543,1697.4,1696.8,0.07309257]
[1659245601310,3.2105135,1697.4,1696.8,0.07309257]
[1659245601933,3.21401754,1697.4,1696.8,0.07309257]
[1659245602432,0.31597082,1697.4,1696.8,0.07309257]
[1659245602592,0.31246678,1697.4,1696.8,6.57309257]
[1659245603195,0.31597082,1697.4,1696.8,9.47113929]
[1659245603957,0.31246678,1697.4,1696.8,9.47113929]
[1659245604703,0.31246678,1697.4,1696.9,2.89804672]
[1659245605034,0.31597082,1697.4,1696.9,2.89804672]
[1659245605685,0.31246678,1697.4,1696.9,2.89804672]
[1659245606685,0.31246678,1697.4,1696.8,0.07309257]
[1659245607031,3.6528135,1697.4,1696.8,0.07309257]
[1659245607643,3.65703819,1697.4,1696.8,0.07309257]
[1659245608032,3.76237468,1697.4,1696.8,0.10605773]
[1659245608588,3.75814999,1697.4,1696.8,0.10605773]
[1659245608933,0.86010327,1697.4,1696.8,0.10605773]
[1659245609134,0.7580016,1697.4,1696.8,3.00410445]
[1659245609346,0.3157016,1697.4,1696.8,3.00410445]
[1659245609880,0.31246678,1697.4,1696.8,0.10605773]
[1659245610480,0.3157016,1697.4,1696.8,0.10605773]
[1659245610643,0.3157016,1697.4,1696.8,3.00410445]
[1659245611273,0.31246678,1697.4,1696.8,3.00410445]
[1659245611952,0.3157016,1697.4,1696.8,3.00410445]
[1659245612361,0.3157016,1697.4,1696.8,7.00410445]
[1659245612764,0.31246678,1697.4,1696.8,7.00410445]
[1659245613158,0.31618803,1697.4,1696.8,7.00410445]
[1659245613375,0.31618803,1697.4,1696.8,10.50410445]
[1659245613564,0.31618803,1697.4,1696.8,7.00410445]
[1659245613983,0.31246678,1697.4,1696.8,7.00410445]
[1659245614597,0.31618803,1697.4,1696.8,7.00410445]
[1659245614967,0.31618803,1697.4,1696.8,4.10605773]
[1659245615196,3.65653475,1697.4,1696.8,4.10605773]
[1659245615404,2.89804672,1697.3,1696.8,4.10605773]
[1659245619415,0.31580789,1697.4,1696.8,7.00410445]
[1659245619582,0.31246678,1697.4,1696.8,7.00410445]
[1659245620028,0.31594488,1697.4,1696.8,7.00410445]
[1659245620895,0.31246678,1697.4,1696.8,7.00410445]
[1659245621292,0.31594486,1697.4,1696.8,7.00410445]
[1659245622216,0.31246678,1697.4,1696.8,7.00410445]
[1659245622589,0.31594486,1697.4,1696.8,7.00410445]
[1659245623527,0.31246678,1697.4,1696.8,7.00410445]
[1659245623883,0.31584605,1697.4,1696.8,7.00410445]
[1659245624784,0.31246678,1697.4,1696.8,7.00410445]
[1659245625198,0.31584605,1697.4,1696.8,7.00410445]
[1659245626120,0.31246678,1697.4,1696.8,7.00410445]
[1659245626699,0.31584605,1697.4,1696.8,7.00410445]
[1659245627100,0.26584605,1697.4,1696.8,7.00410445]
[1659245627283,0.26584605,1697.4,1696.8,10.50410445]
[1659245627485,0.26246678,1697.4,1696.9,6.2119783]
[1659245627908,0.26591086,1697.4,1696.9,6.2119783]
[1659245628710,0.26246678,1697.4,1696.9,6.2119783]
[1659245630151,0.26246678,1697.4,1696.9,2.89804672]
[1659245631033,0.26246678,1697.4,1696.8,3.00410445]
[1659245631929,0.26590219,1697.4,1696.8,3.00410445]
[1659245632746,0.26246678,1697.4,1696.8,3.00410445]
[1659245633265,0.26590219,1697.4,1696.8,3.00410445]
[1659245634238,0.26246678,1697.4,1696.8,3.00410445]
[1659245634664,0.26590219,1697.4,1696.8,3.00410445]
[1659245635459,0.26246678,1697.4,1696.8,3.00410445]
[1659245635895,0.26590725,1697.4,1696.8,3.00410445]
[1659245636760,0.26246678,1697.4,1696.8,3.00410445]
[1659245636960,0.26246678,1697.4,1696.9,3.19804672]
[1659245637196,2.9687,1697.6,1697.0,9.79624539]
[1659245637404,0.00344047,1697.4,1697.1,10.0]
[1659245637557,0.00344047,1697.4,1697.1,13.19804672]
[1659245637755,0.00344047,1697.4,1697.2,2.89804672]
[1659245637995,0.00344047,1697.4,1697.2,3.05168528]
[1659245638201,0.05,1697.8,1697.3,2.89804672]
[1659245638356,0.82016066,1698.0,1697.3,13.19804672]
[1659245638555,0.77016066,1698.0,1697.3,13.49804672]
[1659245638805,0.77016066,1698.0,1697.4,0.15363014]
[1659245638972,0.00344041,1697.6,1697.2,8.3245]
[1659245639186,0.00344041,1697.6,1696.9,5.336]
[1659245639394,0.26246679,1697.5,1697.0,2.89804672]
[1659245640513,0.10533649,1697.4,1697.0,2.89804672]
[1659245640717,0.10533649,1697.4,1696.9,8.36609151]
[1659245641304,0.10533649,1697.4,1696.9,11.26413823]
[1659245642074,0.10533649,1697.4,1696.9,11.56413823]
[1659245644020,0.10533649,1697.4,1696.9,11.26413823]
[1659245644228,0.36780328,1697.4,1696.9,11.26413823]
[1659245644382,0.36780328,1697.4,1696.9,8.36609151]
[1659245649011,3.5,1697.3,1696.7,0.05]
[1659245649239,4.0515,1697.3,1696.5,9.97214099]
[1659245649410,14.7996,1697.3,1696.5,10.53214672]
[1659245649617,15.0996,1697.3,1696.5,10.53214672]
[1659245650014,15.10304697,1697.3,1696.5,10.53214672]
[1659245650823,15.0996,1697.3,1696.5,10.53214672]
[1659245651237,0.00344701,1697.2,1696.6,0.08224756]
[1659245652125,15.0996,1697.3,1696.6,0.08224756]
[1659245652538,0.00343698,1697.2,1696.6,0.08224756]
[1659245652767,0.00343698,1697.2,1696.7,9.81354672]
[1659245652923,0.00343698,1697.2,1696.8,3.37495779]
[1659245653122,0.00343698,1697.2,1696.9,6.19804672]
[1659245653665,0.05,1697.5,1696.9,6.19804672]
[1659245653867,0.26246679,1697.4,1696.8,0.17691107]
[1659245654233,3.40720372,1697.4,1696.8,0.17691107]
[1659245654843,3.40376679,1697.4,1696.8,0.17691107]
[1659245655045,3.40376679,1697.4,1696.8,0.08224756]
[1659245655245,3.4072037,1697.4,1696.8,0.08224756]
[1659245655841,3.4072037,1697.4,1696.8,0.09409619]
[1659245656289,6.36596679,1697.4,1696.8,0.09409619]
[1659245656659,6.36940575,1697.4,1696.8,0.09409619]
[1659245656969,6.81170575,1697.4,1696.8,0.09409619]
[1659245657342,6.80826679,1697.4,1696.8,0.09409619]
[1659245657786,6.81170575,1697.4,1696.8,0.09409619]
[1659245658663,6.80826679,1697.4,1696.8,0.09409619]
[1659245659063,6.81170575,1697.4,1696.8,0.09409619]
[1659245659964,6.80826679,1697.4,1696.8,0.09409619]
[1659245660402,6.36940536,1697.4,1696.8,0.09409619]
[1659245661263,6.36596679,1697.4,1696.8,0.09409619]
[1659245661662,6.36940536,1697.4,1696.8,0.09409619]
[1659245662675,6.36596679,1697.4,1696.8,0.09409619]
[1659245663086,6.36940536,1697.4,1696.8,3.59409619]
[1659245663272,6.36940536,1697.4,1696.8,0.09409619]
[1659245663900,6.36596679,1697.4,1696.8,0.09409619]
[1659245664264,6.36940543,1697.4,1696.8,0.09409619]
[1659245665101,6.36596679,1697.4,1696.8,0.09409619]
[1659245665508,6.36940543,1697.4,1696.8,0.09409619]
[1659245666491,6.36596679,1697.4,1696.8,0.09409619]
[1659245666888,6.36940543,1697.4,1696.8,0.09409619]
[1659245667770,6.36596679,1697.4,1696.8,0.09409619]
[1659245668184,6.36940542,1697.4,1696.8,0.09409619]
[1659245668982,6.36596679,1697.4,1696.8,2.99214291]
[1659245669442,6.36940542,1697.4,1696.8,2.99214291]
[1659245669945,6.36940542,1697.4,1696.8,2.98848544]
[1659245670408,6.36304456,1697.4,1696.8,2.98848544]
[1659245670609,6.36304456,1697.4,1696.8,6.48848544]
[1659245670830,6.36304456,1697.4,1696.9,0.09466351]
[1659245671033,6.36648319,1697.4,1696.9,0.09466351]
[1659245671746,6.36304456,1697.4,1696.9,0.09466351]
[1659245672911,6.36304456,1697.4,1696.8,2.98848544]
[1659245673244,6.36304456,1697.4,1696.8,0.09043872]
[1659245673428,6.80534456,1697.4,1696.8,0.09043872]
[1659245673810,6.80878319,1697.4,1696.8,0.09043872]
[1659245674759,6.80534456,1697.4,1696.8,0.09043872]
[1659245674914,6.36304456,1697.4,1696.8,0.09043872]
[1659245675117,6.36648319,1697.4,1696.8,0.09043872]
[1659245676014,6.36304456,1697.4,1696.9,2.89804672]
[1659245676214,6.36304456,1697.4,1696.9,6.21236865]
[1659245676433,6.36682288,1697.4,1696.9,6.21236865]
[1659245677401,6.36304456,1697.4,1696.9,6.21236865]
[1659245679067,6.36304456,1697.4,1696.9,0.08151232]
[1659245679248,6.80534456,1697.4,1696.9,0.08151232]
[1659245680054,6.36304456,1697.4,1696.9,0.08151232]
[1659245689724,3.34034672,1697.3,1696.7,0.05]
[1659245689924,6.40170419,1697.2,1696.5,0.05]
[1659245690167,6.40170419,1697.2,1696.4,0.05]
[1659245690168,0.3,1697.1,1696.4,0.05]
[1659245690460,6.6242,1697.1,1696.4,2.89804672]
[1659245690673,0.00365747,1697.0,1696.4,2.89804672]
[1659245691981,0.00365747,1697.0,1696.3,12.94771023]
[1659245692678,0.00365747,1697.0,1696.3,13.02922255]
[1659245693838,9.4651,1697.1,1697.0,0.00025439]
[1659245694038,12.75554672,1697.1,1697.0,0.00025439]
[1659245697049,13.40550004,1697.1,1697.0,0.00025439]
[1659245697252,19.99828146,1697.1,1697.0,0.00025439]
[1659245697452,20.25782601,1697.1,1697.0,0.00025439]
[1659245697668,20.25782601,1697.1,1696.6,0.05]
[1659245697669,27.75782601,1697.1,1696.6,0.05]
[1659245697858,1.0,1696.8,1696.1,2.2431]
[1659245698051,7.64514672,1696.8,1696.1,2.2431]
[1659245698283,3.25954455,1696.7,1696.1,2.2431]
[1659245698663,3.55954455,1696.7,1695.8,6.173]
[1659245698863,3.71488104,1696.7,1695.9,2.89539925]
[1659245699101,3.66488104,1696.7,1695.9,2.89539925]
[1659245699951,3.513,1696.6,1695.9,2.89539925]
[1659245700186,6.3541,1696.6,1695.9,2.89539925]
[1659245701054,0.25954455,1696.5,1695.9,2.89539925]
[1659245701258,0.55954455,1696.5,1695.9,2.89539925]
[1659245701886,0.55954455,1696.5,1695.9,2.98056904]
[1659245701887,0.25954455,1696.5,1695.9,2.98056904]
[1659245702103,0.25954455,1696.5,1696.0,2.89804672]
[1659245702261,0.25954455,1696.5,1695.9,2.98321651]
[1659245704484,3.75954455,1696.5,1695.9,0.08516979]
[1659245704686,0.55954455,1696.5,1695.9,0.08516979]
[1659245704888,3.0452,1696.4,1695.9,0.08516979]
[1659245706014,0.10533649,1696.2,1695.7,0.05]
[1659245706331,0.10533649,1696.2,1695.5,2.6628546]
[1659245706625,0.10533649,1696.2,1695.5,5.51090132]
[1659245706626,3.00338321,1696.2,1695.5,5.51090132]
[1659245706788,5.99241421,1696.2,1695.5,2.3181]
[1659245707002,3.0917,1696.1,1695.5,2.3181]
[1659245707206,0.10533649,1696.0,1695.5,2.3181]
[1659245707416,0.10533649,1696.0,1695.4,10.1307]
[1659245707597,0.10533649,1696.0,1695.4,13.02874672]
[1659245707796,0.10533649,1696.0,1695.4,10.72924672]
[1659245708022,2.94804672,1696.2,1695.5,12.38751726]
[1659245708023,0.05,1696.2,1695.5,12.38751726]
[1659245708229,20.1317,1696.3,1695.6,2.89804672]
[1659245708435,20.0817,1696.3,1695.6,2.89804672]
[1659245708645,20.0817,1696.3,1695.7,6.25816979]
[1659245708646,3.0917,1696.3,1695.7,6.25816979]
[1659245708793,3.0917,1696.3,1695.8,2.89804672]
[1659245709300,0.05,1696.5,1696.0,0.86146076]
[1659245709503,13.929,1696.7,1696.0,3.66484397]
[1659245709504,5.9633,1696.6,1696.0,3.66484397]
[1659245709903,5.9633,1696.6,1696.1,2.89804672]
[1659245710100,3.1146,1696.6,1696.2,0.08516979]
[1659245711571,3.1146,1696.6,1696.4,0.09466351]
[1659245712264,6.0522,1696.8,1696.4,0.09466351]
[1659245712473,0.3,1696.8,1696.4,2.99271023]
[1659245712682,8.1882,1697.0,1696.4,2.99271023]
[1659245712838,8.1382,1697.0,1696.4,3.29271023]
[1659245713185,0.00332366,1697.0,1696.5,2.89804672]
[1659245713363,0.00332366,1697.0,1696.5,2.99271023]
[1659245713677,0.00332366,1697.0,1696.7,0.09466351]
[1659245713881,0.00332366,1697.0,1696.8,2.98321651]
[1659245714046,6.1151,1697.4,1696.8,2.98321651]
[1659245714047,6.1651,1697.4,1696.9,2.89804672]
[1659245714232,6.1151,1697.4,1696.9,2.99271023]
[1659245714573,0.00386779,1697.2,1696.9,2.99271023]
[1659245714780,0.00386779,1697.2,1696.9,3.07788002]
[1659245715336,6.1151,1697.4,1696.9,3.07788002]
[1659245715935,6.11896774,1697.4,1696.9,3.07788002]
[1659245716684,6.37851229,1697.4,1696.9,3.07788002]
[1659245716990,6.37464455,1697.4,1696.9,0.08516979]
[1659245717829,9.14024455,1697.4,1696.9,0.08516979]
[1659245718291,12.33829127,1697.4,1696.7,0.05]
[1659245718497,15.83829127,1697.4,1696.6,11.162]
[1659245718707,12.38829127,1697.4,1696.6,14.01004672]
[1659245718877,12.68829127,1697.4,1696.6,14.01004672]
[1659245719568,12.68829127,1697.4,1697.0,0.76679725]
[1659245719768,12.63829127,1697.4,1697.0,0.76679725]
[1659245719970,0.44572765,1697.3,1697.0,0.76679725]
[1659245720887,0.4423,1697.3,1697.0,0.76679725]
[1659245721672,0.4423,1697.3,1697.0,0.76423564]
[1659245724679,0.4423,1697.3,1696.7,0.05]
[1659245724902,0.4423,1697.3,1697.0,0.76423564]
[1659245725507,13.08059127,1697.4,1697.0,0.76423564]
[1659245730129,13.08059127,1697.4,1696.7,0.13516979]
[1659245730331,13.08059127,1697.4,1697.2,0.76423564]
[1659245731910,12.63829127,1697.4,1697.2,0.76423564]
[1659245733527,9.75829127,1697.4,1697.2,0.76423564]
[1659245734347,6.86024455,1697.4,1697.2,0.76423564]
[1659245735404,6.86024455,1697.4,1696.8,0.05]
[1659245735605,6.86024455,1697.4,1697.3,0.76423564]
[1659245735834,9.75829127,1697.4,1697.3,0.76423564]
[1659245737101,6.86024455,1697.4,1697.3,0.76423564]
[1659245737308,6.0007,1697.4,1697.3,0.76423564]
[1659245737611,3.2351,1697.4,1697.3,0.76423564]
[1659245738119,7.9698,1697.5,1697.3,0.76423564]
[1659245738305,12.0456,1697.8,1697.3,0.76423564]
[1659245738504,0.00342221,1697.7,1697.3,0.76423564]
[1659245739152,12.0456,1697.8,1697.3,0.76423564]
[1659245739153,12.29902221,1697.8,1697.3,0.76423564]
[1659245739308,12.85856676,1697.8,1697.3,0.76423564]
[1659245739955,12.25856676,1697.8,1697.3,0.76423564]
[1659245740740,12.25856676,1697.8,1697.2,0.00633376]
[1659245740959,12.25856676,1697.8,1697.6,0.76423564]
[1659245746170,12.25856676,1697.8,1697.2,0.05633376]
[1659245746366,12.25856676,1697.8,1697.7,0.76423564]
[1659245746668,12.26641348,1697.8,1697.7,0.76423564]
[1659245747024,12.26641348,1697.8,1697.7,0.74218796]
[1659245748726,12.56641348,1697.8,1697.7,0.74218796]
[1659245749811,12.86641348,1697.8,1697.7,0.74218796]
[1659245752610,12.86641348,1697.8,1697.7,0.71893693]
[1659245754209,12.86641348,1697.8,1697.7,0.00093693]
[1659245754412,16.91394997,1697.8,1697.7,0.00093693]
[1659245754661,16.41394997,1697.8,1697.7,0.00093693]
[1659245755010,15.97174997,1697.8,1697.7,0.00093693]
[1659245757054,15.86641348,1697.8,1697.7,0.00093693]
[1659245773042,16.33657414,1697.8,1697.7,0.00093693]
[1659245776266,29.30505758,1697.8,1697.7,0.00093693]
[1659245776436,7.0,1697.3,1696.8,3.5]
[1659245776627,0.10533649,1697.1,1696.3,7.0]
[1659245776825,0.10533649,1697.1,1696.2,0.4426]
[1659245776826,2.89804672,1697.0,1696.4,3.5]
[1659245777027,2.89804672,1697.0,1696.3,3.5]
[1659245777226,2.89804672,1697.0,1696.1,13.967]
[1659245777227,2.89804672,1697.0,1696.2,3.5]
[1659245777441,2.94804672,1697.0,1696.2,3.5]
[1659245777648,5.99174672,1696.9,1696.2,3.5]
[1659245777863,5.99174672,1696.9,1696.2,3.58516979]
[1659245778170,5.49174672,1696.9,1696.2,0.08516979]
[1659245778757,6.50338321,1696.8,1696.2,0.08516979]
[1659245778959,0.10533649,1696.6,1696.1,10.467]
[1659245779269,3.15759127,1696.5,1695.9,11.5]
[1659245779501,3.15759127,1696.5,1695.7,3.1403]
[1659245779502,2.89804672,1696.4,1695.7,3.1403]
[1659245779658,2.89804672,1696.4,1695.6,8.1887]
[1659245779659,6.15284672,1696.4,1695.6,8.1887]
[1659245779860,2.89804672,1696.3,1695.6,8.1887]
[1659245780077,0.25954455,1696.2,1695.6,8.1887]
[1659245780901,0.25954455,1696.2,1695.6,10.63859691]
[1659245781259,0.25954455,1696.2,1695.6,8.1887]
[1659245781658,0.25954455,1696.2,1695.6,8.19147577]
[1659245781961,0.25954455,1696.2,1695.6,8.27664556]
[1659245782465,0.25954455,1696.2,1695.6,8.27386979]
[1659245782856,0.25954455,1696.2,1695.6,8.27664556]
[1659245783885,0.25954455,1696.2,1695.6,8.27386979]
[1659245784263,0.25954455,1696.2,1695.7,0.00325512]
[1659245790008,3.15759127,1696.2,1695.7,0.00325512]
[1659245790606,3.15759127,1696.2,1695.8,0.08516979]
[1659245790607,2.89804672,1696.2,1695.8,0.08516979]
[1659245790845,3.3048,1696.4,1695.8,0.08516979]
[1659245791017,6.15284672,1696.4,1695.8,0.08516979]
[1659245791221,2.9548,1696.4,1695.8,0.08516979]
[1659245791636,2.9548,1696.4,1695.8,3.08516979]
[1659245791835,2.9548,1696.4,1695.8,6.58516979]
[1659245792522,2.9548,1696.4,1695.8,3.08516979]
[1659245793347,2.9548,1696.4,1695.8,6.58516979]
[1659245793547,2.9548,1696.4,1695.8,0.08516979]
[1659245794418,2.9548,1696.4,1695.9,0.00325473]
[1659245795026,3.21434455,1696.4,1695.9,0.00325473]
[1659245797279,7.5387,1696.5,1696.0,0.08516979]
[1659245797481,6.69,1696.6,1696.1,0.00325435]
[1659245797482,6.1975,1696.6,1696.1,0.00325435]
[1659245797653,3.3327,1696.8,1696.1,3.59791786]
[1659245797870,3.3327,1696.8,1696.3,0.09466351]
[1659245797871,3.2827,1696.8,1696.3,0.09466351]
[1659245798053,0.4924,1697.0,1696.3,0.09466351]
[1659245798254,2.89804672,1697.0,1696.6,0.09466351]
[1659245798518,6.57544672,1697.1,1696.6,0.09466351]
[1659245798714,3.235,1697.1,1696.6,0.1798333]
[1659245799004,6.032,1697.1,1696.8,0.09466351]
[1659245799498,2.797,1697.1,1696.8,0.1798333]
[1659245799656,3.27874455,1697.3,1697.0,0.09466351]
[1659245803677,3.27874455,1697.3,1696.9,0.00325282]
[1659245804831,3.27874455,1697.3,1696.9,11.00819729]
[1659245805324,0.25954455,1697.3,1696.9,11.00819729]
[1659245806248,0.25954455,1697.3,1696.9,0.00325282]
[1659245826045,0.25954455,1697.3,1696.8,0.08516979]
[1659245832518,6.1164,1697.4,1696.9,3.5]
[1659245832519,3.0194,1697.4,1696.9,3.5]
[1659245832827,2.89901079,1697.6,1697.0,6.99082587]
[1659245832977,0.00281079,1697.6,1697.1,13.69804672]
[1659245833177,0.00281079,1697.6,1697.2,3.0]